fUSD/lending_fUSD_20250708
["ID","MTS","AMOUNT","RATE_DAILY","PERIOD"]
[370435262,1752017460971,-460.0,0.00024931,2]
[370435263,1752017460980,-673.03,0.00024931,2]
[370435264,1752017460990,-460.0,0.00024931,2]
[370435265,1752017460999,-460.0,0.00024931,2]
[370435266,1752017461009,-887.98,0.00024931,2]
[370435267,1752017461019,-524.98,0.00024931,2]
[370435268,1752017461029,-492.19,0.00024931,2]
[370435269,1752017461038,-460.0,0.00024931,2]
[370435270,1752017461048,-460.0,0.00024931,2]
[370435271,1752017461059,-528.57,0.00024931,2]
[370435272,1752017461069,-460.0,0.00024931,2]
[370435273,1752017461080,-809.48,0.00024931,2]
[370435274,1752017461090,-460.0,0.00024931,2]
[370435275,1752017461100,-460.0,0.00024931,2]
[370435276,1752017461111,-625.18,0.00024931,2]
[370435277,1752017461122,-647.46,0.00024931,2]
[370435278,1752017461131,-460.0,0.00024931,2]
[370435279,1752017461141,-1160.02,0.00024931,2]
[370435280,1752017461150,-254.29645158,0.00024931,2]
[370435281,1752017461159,-495.47,0.00024931,2]
[370435282,1752017461169,-460.0,0.00024931,2]
[370435283,1752017461178,-526.56,0.00024931,2]
[370435284,1752017461187,-655.02,0.00024931,2]
[370435285,1752017461196,-460.0,0.00024931,2]
[370435286,1752017461206,-460.0,0.00024931,2]
[370435287,1752017461216,-3203.44,0.00024931,2]
[370435288,1752017461226,-460.0,0.00024931,2]
[370435289,1752017461236,-1272.96,0.00024931,2]
[370435290,1752017461246,-460.0,0.00024931,2]
[370435291,1752017461257,-460.0,0.00024931,2]
[370435292,1752017461267,-460.0,0.00024931,2]
[370435293,1752017461277,-788.0,0.00024931,2]
[370435294,1752017461288,-645.75,0.00024931,2]
[370435295,1752017461299,-1918.98,0.00024931,2]
[370435296,1752017461309,-460.0,0.00024931,2]
[370435297,1752017461319,-460.0,0.00024931,2]
[370435298,1752017461420,-625.48,0.00024931,2]
[370435299,1752017461430,-460.0,0.00024931,2]
[370435300,1752017461439,-460.0,0.00024931,2]
[370435301,1752017461449,-504.14,0.00024931,2]
[370435302,1752017461457,-460.0,0.00024931,2]
[370435303,1752017461467,-1538.39,0.00024931,2]
[370435304,1752017461476,-460.0,0.00024931,2]
[370435305,1752017461485,-648.24,0.00024931,2]
[370435306,1752017461495,-1175.19,0.00024931,2]
[370435307,1752017461504,-1379.74,0.00024931,2]
[370435308,1752017461515,-460.0,0.00024931,2]
[370435309,1752017461523,-945.14,0.00024931,2]
[370435310,1752017461534,-460.0,0.00024931,2]
[370435311,1752017461543,-460.0,0.00024931,2]
[370435312,1752017461552,-460.0,0.00024931,2]
[370435313,1752017461562,-460.0,0.00024931,2]
[370435314,1752017461571,-1492.82,0.00024931,2]
[370435315,1752017461580,-460.0,0.00024931,2]
[370435316,1752017461590,-658.87,0.00024931,2]
[370435317,1752017461599,-460.0,0.00024931,2]
[370435318,1752017461608,-460.0,0.00024931,2]
[370435319,1752017461617,-698.01,0.00024931,2]
[370435320,1752017461626,-460.0,0.00024931,2]
[370435321,1752017461636,-460.0,0.00024931,2]
[370435322,1752017461645,-460.0,0.00024931,2]
[370435323,1752017461654,-482.54,0.00024931,2]
[370435324,1752017461663,-1500.0,0.00024931,2]
[370435325,1752017461673,-1063.69,0.00024931,2]
[370435326,1752017461683,-460.0,0.00024931,2]
[370435327,1752017461692,-460.0,0.00024931,2]
[370435328,1752017461702,-460.0,0.00024931,2]
[370435329,1752017461712,-460.0,0.00024931,2]
[370435330,1752017461725,-1008.79,0.00024931,2]
[370435331,1752017461734,-966.75,0.00024931,2]
[370435332,1752017461744,-1025.83,0.00024931,2]
[370435333,1752017461753,-460.0,0.00024931,2]
[370435334,1752017461764,-490.13,0.00024931,2]
[370435335,1752017461773,-604.18,0.00024931,2]
[370435336,1752017461784,-567.0,0.00024931,2]
[370435337,1752017461796,-460.0,0.00024931,2]
[370435338,1752017461807,-460.0,0.00024931,2]
[370435339,1752017461817,-821.75,0.00024931,2]
[370435340,1752017461829,-460.0,0.00024931,2]
[370435341,1752017461839,-1012.08,0.00024931,2]
[370435342,1752017461849,-1360.36,0.00024931,2]
[370435343,1752017461858,-826.2,0.00024931,2]
[370435344,1752017461868,-1337.58,0.00024931,2]
[370435345,1752017461879,-460.0,0.00024931,2]
[370435346,1752017461888,-460.0,0.00024931,2]
[370435347,1752017461898,-460.0,0.00024931,2]
[370435348,1752017461907,-588.58,0.00024931,2]
[370435349,1752017461917,-888.87,0.00024931,2]
[370435350,1752017461927,-660.56,0.00024931,2]
[370435351,1752017461937,-1769.36,0.00024931,2]
[370435352,1752017461947,-661.49,0.00024931,2]
[370435353,1752017461956,-460.0,0.00024931,2]
[370435354,1752017461966,-460.0,0.00024931,2]
[370435355,1752017461975,-460.0,0.00024931,2]
[370435356,1752017461985,-1874.84,0.00024931,2]
[370435357,1752017461994,-460.0,0.00024931,2]
[370435358,1752017462004,-506.5,0.00024931,2]
[370435359,1752017462015,-460.0,0.00024931,2]
[370435360,1752017462025,-3633.06,0.00024931,2]
[370435361,1752017462034,-460.0,0.00024931,2]
[370435362,1752017462044,-460.0,0.00024931,2]
[370435363,1752017462053,-555.11,0.00024931,2]
[370435364,1752017462063,-1916.62,0.00024931,2]
[370435365,1752017462073,-460.0,0.00024931,2]
[370435366,1752017462082,-509.72,0.00024931,2]
[370435367,1752017462091,-460.0,0.00024931,2]
[370435368,1752017462100,-460.0,0.00024931,2]
[370435369,1752017462109,-460.0,0.00024931,2]
[370435370,1752017462118,-460.0,0.00024931,2]
[370435371,1752017462128,-1168.39,0.00024931,2]
[370435372,1752017462139,-460.0,0.00024931,2]
[370435373,1752017462149,-460.0,0.00024931,2]
[370435374,1752017462160,-2197.4,0.00024931,2]
[370435375,1752017462169,-1679.63,0.00024931,2]
[370435376,1752017462179,-460.0,0.00024931,2]
[370435377,1752017462190,-1111.84,0.00024931,2]
[370435378,1752017462200,-460.0,0.00024931,2]
[370435379,1752017462210,-460.0,0.00024931,2]
[370435380,1752017462220,-645.81,0.00024931,2]
[370435381,1752017462230,-460.0,0.00024931,2]
[370435382,1752017462240,-460.0,0.00024931,2]
[370435383,1752017462250,-534.96,0.00024931,2]
[370435384,1752017462261,-638.66,0.00024931,2]
[370435385,1752017462270,-489.39,0.00024931,2]
[370435386,1752017462280,-460.0,0.00024931,2]
[370435387,1752017462291,-497.48733035,0.00024931,2]
[370435388,1752017462300,-460.0,0.00024931,2]
[370435389,1752017462311,-151.0,0.00024931,7]
[370435390,1752017462322,-151.0,0.00024931,7]
[370435391,1752017462331,-151.0,0.00024931,7]
[370435392,1752017462342,-510.11,0.00024931,2]
[370435393,1752017462354,-151.0,0.00024931,7]
[370435394,1752017462364,-460.0,0.00024931,2]
[370435395,1752017462372,-485.3,0.00024931,2]
[370435396,1752017462384,-702.34,0.00024931,2]
[370435397,1752017462393,-460.0,0.00024931,2]
[370435398,1752017462402,-460.0,0.00024931,2]
[370435399,1752017462413,-653.21,0.00024931,2]
[370435400,1752017462423,-226.90380997,0.00024931,2]
[370435401,1752017462434,-952.78,0.00024931,2]
[370435402,1752017462444,-460.0,0.00024931,2]
[370435403,1752017462454,-549.59,0.00024931,2]
[370435404,1752017462465,-908.68,0.00024931,2]
[370435405,1752017462476,-1024.69,0.00024931,2]
[370435406,1752017462486,-1563.98,0.00024931,2]
[370435407,1752017462496,-460.0,0.00024931,2]
[370435408,1752017462506,-506.07,0.00024931,2]
[370435409,1752017462519,-460.0,0.00024931,2]
[370435410,1752017462529,-460.0,0.00024931,2]
[370435411,1752017462538,-654.7,0.00024931,2]
[370435412,1752017462547,-719.34,0.00024931,2]
[370435413,1752017462557,-151.0,0.00024931,7]
[370435414,1752017462566,-151.0,0.00024931,7]
[370435415,1752017462575,-151.0,0.00024931,7]
[370435416,1752017462586,-151.0,0.00024931,7]
[370435417,1752017462595,-151.0,0.00024931,7]
[370435418,1752017462606,-460.0,0.00024931,2]
[370435419,1752017462615,-1323.21,0.00024931,2]
[370435420,1752017462625,-486.73,0.00024931,2]
[370435421,1752017462635,-977.04,0.00024931,2]
[370435422,1752017462645,-151.0,0.00024931,7]
[370435423,1752017462654,-151.0,0.00024931,7]
[370435424,1752017462665,-460.0,0.00024931,2]
[370435425,1752017462675,-829.39,0.00024931,2]
[370435426,1752017462684,-220.0,0.00024931,2]
[370435427,1752017462695,-151.0,0.00024931,7]
[370435428,1752017462706,-189.714301,0.00024931,7]
[370435429,1752017462719,-460.0,0.00024931,2]
[370435430,1752017462729,-1583.27,0.00024931,2]
[370435431,1752017462739,-460.0,0.00024931,2]
[370435432,1752017462749,-1534.75,0.00024931,2]
[370435433,1752017462760,-460.0,0.00024931,2]
[370435434,1752017462770,-460.0,0.00024931,2]
[370435435,1752017462779,-460.0,0.00024931,2]
[370435436,1752017462790,-460.0,0.00024931,2]
[370435437,1752017462799,-460.0,0.00024931,2]
[370435438,1752017462810,-460.0,0.00024931,2]
[370435439,1752017462819,-633.39,0.00024931,2]
[370435440,1752017462829,-1599.2,0.00024931,2]
[370435441,1752017462838,-802.38,0.00024931,2]
[370435442,1752017462848,-460.0,0.00024931,2]
[370435443,1752017462858,-1066.17,0.00024931,2]
[370435444,1752017462868,-2213.98,0.00024931,2]
[370435445,1752017462879,-496.98,0.00024931,2]
[370435446,1752017462889,-460.0,0.00024931,2]
[370435447,1752017462899,-460.0,0.00024931,2]
[370435448,1752017462908,-1323.25,0.00024931,2]
[370435449,1752017462919,-1478.71,0.00024931,2]
[370435450,1752017462929,-759.79,0.00024931,2]
[370435451,1752017462938,-755.14,0.00024931,2]
[370435452,1752017462949,-460.0,0.00024931,2]
[370435453,1752017462958,-1390.77,0.00024931,2]
[370435454,1752017462968,-1169.33,0.00024931,2]
[370435455,1752017462977,-1021.47,0.00024931,2]
[370435456,1752017462987,-610.59,0.00024931,2]
[370435457,1752017462997,-512.78,0.00024931,2]
[370435458,1752017463007,-460.0,0.00024931,2]
[370435459,1752017463016,-460.0,0.00024931,2]
[370435460,1752017463026,-639.16,0.00024931,2]
[370435461,1752017463035,-2846.48,0.00024931,2]
[370435462,1752017463045,-460.0,0.00024931,2]
[370435463,1752017463055,-1991.05,0.00024931,2]
[370435464,1752017463065,-876.64,0.00024931,2]
[370435465,1752017463075,-1046.38,0.00024931,2]
[370435466,1752017463085,-954.72,0.00024931,2]
[370435467,1752017463095,-489.0,0.00024931,2]
[370435468,1752017463104,-496.58,0.00024931,2]
[370435469,1752017463114,-335.43380908,0.00024931,2]
[370435470,1752017463124,-600.0,0.00024931,2]
[370435471,1752017463134,-2335.79,0.00024931,2]
[370435472,1752017463143,-2464.61,0.00024931,2]
[370435473,1752017463153,-460.0,0.00024931,2]
[370435474,1752017463163,-460.0,0.00024931,2]
[370435475,1752017463172,-460.0,0.00024931,2]
[370435476,1752017463183,-2339.49,0.00024931,2]
[370435477,1752017463192,-460.0,0.00024931,2]
[370435478,1752017463202,-460.0,0.00024931,2]
[370435479,1752017463212,-460.0,0.00024931,2]
[370435480,1752017463222,-849.09,0.00024931,2]
[370435481,1752017463231,-601.13382135,0.00024931,2]
[370435482,1752017463241,-460.0,0.00024931,2]
[370435483,1752017463251,-1507.0,0.00024931,2]
[370435484,1752017463262,-860.82,0.00024931,2]
[370435485,1752017463271,-499.04910522,0.00024931,2]
[370435486,1752017463281,-460.0,0.00024931,2]
[370435487,1752017463290,-1161.98,0.00024931,2]
[370435488,1752017463299,-460.0,0.00024931,2]
[370435489,1752017463308,-460.0,0.00024931,2]
[370435490,1752017463318,-460.0,0.00024931,2]
[370435491,1752017463328,-2011.76,0.00024931,2]
[370435492,1752017463337,-1387.55,0.00024931,2]
[370435493,1752017463347,-460.0,0.00024931,2]
[370435494,1752017463356,-460.0,0.00024931,2]
[370435495,1752017463365,-460.0,0.00024931,2]
[370435496,1752017463374,-460.0,0.00024931,2]
[370435497,1752017463383,-844.82,0.00024931,2]
[370435498,1752017463392,-460.0,0.00024931,2]
[370435499,1752017463402,-460.0,0.00024931,2]
[370435500,1752017463412,-1746.06,0.00024931,2]
[370435501,1752017463422,-460.0,0.00024931,2]
[370435502,1752017463431,-888.1,0.00024931,2]
[370435503,1752017463440,-873.47,0.00024931,2]
[370435504,1752017463450,-591.83,0.00024931,2]
[370435505,1752017463459,-2940.63,0.00024931,2]
[370435506,1752017463468,-826.07,0.00024931,2]
[370435507,1752017463478,-2958.77,0.00024931,2]
[370435508,1752017463487,-547.85005189,0.00024931,2]
[370435509,1752017463496,-460.0,0.00024931,2]
[370435510,1752017463506,-460.0,0.00024931,2]
[370435511,1752017463516,-617.71,0.00024931,2]
[370435512,1752017463526,-460.0,0.00024931,2]
[370435513,1752017463535,-899.85,0.00024931,2]
[370435514,1752017463545,-460.0,0.00024931,2]
[370435515,1752017463554,-732.52,0.00024931,2]
[370435516,1752017463564,-460.0,0.00024931,2]
[370435517,1752017463573,-1498.71,0.00024931,2]
[370435518,1752017463582,-471.099345,0.00024931,7]
[370435519,1752017463592,-471.099345,0.00024931,7]
[370435520,1752017463601,-471.099345,0.00024931,7]
[370435521,1752017463611,-829.35,0.00024931,2]
[370435522,1752017463620,-471.099345,0.00024931,7]
[370435523,1752017463630,-471.099345,0.00024931,7]
[370435524,1752017463640,-460.0,0.00024931,2]
[370435525,1752017463649,-1264.82,0.00024931,2]
[370435526,1752017463658,-972.51,0.00024931,2]
[370435527,1752017463667,-543.7,0.00024931,2]
[370435528,1752017463677,-471.099345,0.00024931,7]
[370435529,1752017463686,-460.0,0.00024931,2]
[370435530,1752017463696,-471.099345,0.00024931,7]
[370435531,1752017463706,-460.0,0.00024931,2]
[370435532,1752017463719,-468.78,0.00024931,2]
[370435533,1752017463728,-471.099345,0.00024931,7]
[370435534,1752017463737,-471.099345,0.00024931,7]
[370435535,1752017463746,-471.09935145,0.00024931,7]
[370435536,1752017463755,-747.78,0.00024931,2]
[370435537,1752017463766,-460.0,0.00024931,2]
[370435538,1752017463775,-906.76,0.00024931,2]
[370435539,1752017463785,-460.0,0.00024931,2]
[370435540,1752017463794,-460.0,0.00024931,2]
[370435541,1752017463804,-460.0,0.00024931,2]
[370435542,1752017463814,-473.37,0.00024931,2]
[370435543,1752017463824,-576.13,0.00024931,2]
[370435544,1752017463833,-2395.2,0.00024931,2]
[370435545,1752017463842,-551.43,0.00024931,2]
[370435546,1752017463852,-460.0,0.00024931,2]
[370435547,1752017463861,-2211.31,0.00024931,2]
[370435548,1752017463870,-460.0,0.00024931,2]
[370435549,1752017463879,-460.0,0.00024931,2]
[370435550,1752017463889,-460.0,0.00024931,2]
[370435551,1752017463899,-1916.01,0.00024931,2]
[370435552,1752017463908,-2572.76,0.00024931,2]
[370435553,1752017463918,-460.0,0.00024931,2]
[370435554,1752017463927,-1404.96,0.00024931,2]
[370435555,1752017463938,-712.57,0.00024931,2]
[370435556,1752017463947,-460.0,0.00024931,2]
[370435557,1752017463957,-197.83518403,0.00024931,2]
[370435558,1752017463966,-460.0,0.00024931,2]
[370435559,1752017463976,-909.83,0.00024931,2]
[370435560,1752017463985,-460.0,0.00024931,2]
[370435561,1752017463994,-460.0,0.00024931,2]
[370435562,1752017464004,-1920.3,0.00024931,2]
[370435563,1752017464017,-1968.0,0.00024931,2]
[370435564,1752017464027,-479.31,0.00024931,2]
[370435565,1752017464037,-460.0,0.00024931,2]
[370435566,1752017464047,-460.0,0.00024931,2]
[370435567,1752017464057,-460.0,0.00024931,2]
[370435568,1752017464066,-460.0,0.00024931,2]
[370435569,1752017464076,-483.69,0.00024931,2]
[370435570,1752017464085,-320.7,0.00024931,2]
[370435571,1752017464095,-1227.64,0.00024931,2]
[370435572,1752017464104,-669.55,0.00024931,2]
[370435573,1752017464114,-483.23,0.00024931,2]
[370435574,1752017464124,-1012.7,0.00024931,2]
[370435575,1752017464133,-471.66,0.00024931,2]
[370435576,1752017464143,-460.0,0.00024931,2]
[370435577,1752017464153,-460.0,0.00024931,2]
[370435578,1752017464163,-1066.16,0.00024931,2]
[370435579,1752017464172,-579.46,0.00024931,2]
[370435580,1752017464182,-1406.35,0.00024931,2]
[370435581,1752017464192,-552.85,0.00024931,2]
[370435582,1752017464201,-834.97,0.00024931,2]
[370435583,1752017464210,-487.08,0.00024931,2]
[370435584,1752017464219,-733.61,0.00024931,2]
[370435585,1752017464228,-460.0,0.00024931,2]
[370435586,1752017464238,-460.0,0.00024931,2]
[370435587,1752017464247,-460.0,0.00024931,2]
[370435588,1752017464256,-1282.99,0.00024931,2]
[370435589,1752017464267,-608.77,0.00024931,2]
[370435590,1752017464276,-1634.24,0.00024931,2]
[370435591,1752017464285,-460.0,0.00024931,2]
[370435592,1752017464295,-460.0,0.00024931,2]
[370435593,1752017464305,-460.0,0.00024931,2]
[370435594,1752017464315,-1011.54,0.00024931,2]
[370435595,1752017464324,-460.0,0.00024931,2]
[370435596,1752017464333,-740.07,0.00024931,2]
[370435597,1752017464342,-521.41356252,0.00024931,2]
[370435598,1752017464352,-2114.73,0.00024931,2]
[370435599,1752017464361,-460.0,0.00024931,2]
[370435600,1752017464370,-460.0,0.00024931,2]
[370435601,1752017464379,-474.79,0.00024931,2]
[370435602,1752017464389,-241.09,0.00024931,2]
[370435603,1752017464399,-460.0,0.00024931,2]
[370435604,1752017464408,-2895.92,0.00024931,2]
[370435605,1752017464417,-972.6,0.00024931,2]
[370435606,1752017464427,-460.0,0.00024931,2]
[370435607,1752017464436,-460.0,0.00024931,2]
[370435608,1752017464446,-460.0,0.00024931,2]
[370435609,1752017464456,-460.0,0.00024931,2]
[370435610,1752017464466,-479.02,0.00024931,2]
[370435611,1752017464476,-570.01,0.00024931,2]
[370435612,1752017464485,-584.86,0.00024931,2]
[370435613,1752017464494,-320.0,0.00024931,2]
[370435614,1752017464503,-2559.23,0.00024931,2]
[370435615,1752017464514,-460.0,0.00024931,2]
[370435616,1752017464524,-691.87,0.00024931,2]
[370435617,1752017464533,-460.0,0.00024931,2]
[370435618,1752017464543,-1662.89,0.00024931,2]
[370435619,1752017464552,-460.0,0.00024931,2]
[370435620,1752017464562,-460.0,0.00024931,2]
[370435621,1752017464572,-460.0,0.00024931,2]
[370435622,1752017464581,-803.26,0.00024931,2]
[370435623,1752017464591,-2803.1,0.00024931,2]
[370435624,1752017464601,-460.0,0.00024931,2]
[370435625,1752017464610,-460.0,0.00024931,2]
[370435626,1752017464620,-1108.6,0.00024931,2]
[370435627,1752017464629,-516.63134175,0.00024931,2]
[370435628,1752017464638,-470.29,0.00024931,2]
[370435629,1752017464647,-460.0,0.00024931,2]
[370435630,1752017464657,-591.36,0.00024931,2]
[370435631,1752017464667,-540.0,0.00024931,2]
[370435632,1752017464676,-1746.08,0.00024931,2]
[370435633,1752017464686,-300.0,0.00024931,2]
[370435634,1752017464696,-1355.77,0.00024931,2]
[370435635,1752017464705,-1763.22,0.00024931,2]
[370435636,1752017464717,-2767.21,0.00024931,2]
[370435637,1752017464727,-460.0,0.00024931,2]
[370435638,1752017464737,-460.0,0.00024931,2]
[370435639,1752017464746,-759.39,0.00024931,2]
[370435640,1752017464756,-551.67525944,0.00024931,2]
[370435641,1752017464766,-460.0,0.00024931,2]
[370435642,1752017464775,-460.0,0.00024931,2]
[370435643,1752017464786,-460.0,0.00024931,2]
[370435644,1752017464796,-460.0,0.00024931,2]
[370435645,1752017464807,-1911.69,0.00024931,2]
[370435646,1752017464818,-460.0,0.00024931,2]
[370435647,1752017464830,-460.0,0.00024931,2]
[370435648,1752017464840,-460.0,0.00024931,2]
[370435649,1752017464850,-902.65,0.00024931,2]
[370435650,1752017464859,-460.0,0.00024931,2]
[370435651,1752017464869,-732.31,0.00024931,2]
[370435652,1752017464879,-460.0,0.00024931,2]
[370435653,1752017464888,-460.0,0.00024931,2]
[370435654,1752017464898,-523.98,0.00024931,2]
[370435655,1752017464908,-1129.92,0.00024931,2]
[370435656,1752017464917,-460.0,0.00024931,2]
[370435657,1752017464926,-3238.09,0.00024931,2]
[370435658,1752017464937,-1159.27,0.00024931,2]
[370435659,1752017464946,-1640.07,0.00024931,2]
[370435660,1752017464956,-527.56,0.00024931,2]
[370435661,1752017464965,-493.97,0.00024931,2]
[370435662,1752017464975,-460.0,0.00024931,2]
[370435663,1752017464985,-602.49,0.00024931,2]
[370435664,1752017464995,-478.19,0.00024931,2]
[370435665,1752017465005,-710.83,0.00024931,2]
[370435666,1752017465015,-460.0,0.00024931,2]
[370435667,1752017465025,-1035.58,0.00024931,2]
[370435668,1752017465034,-692.98,0.00024931,2]
[370435669,1752017465046,-868.94,0.00024931,2]
[370435670,1752017465055,-460.0,0.00024931,2]
[370435671,1752017465066,-460.0,0.00024931,2]
[370435672,1752017465077,-872.44,0.00024931,2]
[370435673,1752017465087,-460.0,0.00024931,2]
[370435674,1752017465098,-460.0,0.00024931,2]
[370435675,1752017465109,-895.46,0.00024931,2]
[370435676,1752017465121,-193.45329222,0.00024931,2]
[370435677,1752017465132,-462.5,0.00024931,2]
[370435678,1752017465143,-842.16,0.00024931,2]
[370435679,1752017465153,-496.63,0.00024931,2]
[370435680,1752017465163,-903.7,0.00024931,2]
[370435681,1752017465172,-675.14,0.00024931,2]
[370435682,1752017465183,-624.62,0.00024931,2]
[370435683,1752017465192,-478.14,0.00024931,2]
[370435684,1752017465202,-460.0,0.00024931,2]
[370435685,1752017465212,-460.0,0.00024931,2]
[370435686,1752017465224,-460.0,0.00024931,2]
[370435687,1752017465235,-1095.61,0.00024931,2]
[370435688,1752017465244,-460.0,0.00024931,2]
[370435689,1752017465254,-1929.96,0.00024931,2]
[370435690,1752017465264,-460.0,0.00024931,2]
[370435691,1752017465274,-2045.17,0.00024931,2]
[370435692,1752017465285,-476.96,0.00024931,2]
[370435693,1752017465295,-460.0,0.00024931,2]
[370435694,1752017465306,-460.0,0.00024931,2]
[370435695,1752017465317,-460.0,0.00024931,2]
[370435696,1752017465327,-460.0,0.00024931,2]
[370435697,1752017465337,-748.43,0.00024931,2]
[370435698,1752017465346,-460.0,0.00024931,2]
[370435699,1752017465355,-460.0,0.00024931,2]
[370435700,1752017465367,-1064.96,0.00024931,2]
[370435701,1752017465378,-851.49,0.00024931,2]
[370435702,1752017465389,-460.0,0.00024931,2]
[370435703,1752017465399,-1148.9,0.00024931,2]
[370435704,1752017465410,-460.0,0.00024931,2]
[370435705,1752017465421,-472.76862461,0.00024931,2]
[370435706,1752017465433,-518.22,0.00024931,2]
[370435707,1752017465444,-460.0,0.00024931,2]
[370435708,1752017465454,-460.0,0.00024931,2]
[370435709,1752017465464,-460.0,0.00024931,2]
[370435710,1752017465474,-684.59,0.00024931,2]
[370435711,1752017465484,-686.54,0.00024931,2]
[370435712,1752017465496,-460.0,0.00024931,2]
[370435713,1752017465507,-658.36,0.00024931,2]
[370435714,1752017465516,-460.0,0.00024931,2]
[370435715,1752017465527,-22621.78482788,0.00024931,2]
[370435716,1752017469001,-4955.95916019,0.00024657,7]
[370435717,1752017469013,-243.38087494,0.00024657,7]
[370435718,1752017469023,-395.91763552,0.00024657,7]
[370435719,1752017469035,-14864.35896906,0.00024657,7]
[370435720,1752017469046,-13422.38382452,0.00024657,7]
[370435721,1752017469104,-568.98724979,0.00024657,7]
[370435722,1752017469116,-2966.94340464,0.00024657,7]
[370435723,1752017469218,-539.77650905,0.00024657,7]
[370435724,1752017470378,-6540.13177354,0.00024657,7]
[370435725,1752017470457,-545.39485,0.00024657,7]
[370435727,1752017483204,158.74,0.00013699,2]
[370435728,1752017598234,500.0,0.00030137,120]
[370435729,1752017781770,2000.0,0.00030136,120]
[370435730,1752017794229,2026.311533,0.00030136,120]
[370435731,1752017856077,500.0,0.000301,120]
[370435732,1752017866403,545.0,0.000301,120]
[370435733,1752017927774,1000.0,0.0003013,120]
[370435734,1752018008958,1217.22519542,0.0003013,120]
[370435735,1752018097388,499.5,0.00030136,120]
[370435736,1752018356902,400.712,0.0003013,120]
[370435737,1752018443871,154.0,0.00030137,120]
[370435739,1752018525583,158.77,0.00013699,2]
[370435745,1752018632108,-509.0,0.0001759,2]
[370435746,1752018632120,-509.0,0.00018915,3]
[370435747,1752018632134,-509.0,0.00020241,5]
[370435748,1752018632145,-176.97,0.00020385,2]
[370435749,1752018632155,-509.0,0.00021566,7]
[370435750,1752018632165,-380.0,0.00022,2]
[370435751,1752018632177,-150.0,0.00022,2]
[370435752,1752018632189,-380.0,0.00022192,7]
[370435753,1752018632201,-380.0,0.00022466,7]
[370435754,1752018632210,-150.0,0.0002247,2]
[370435755,1752018632221,-191.8,0.00022607,2]
[370435756,1752018632231,-300.0,0.00022649,2]
[370435757,1752018632241,-706.94,0.00022672,2]
[370435758,1752018632252,-151.04,0.00022686,2]
[370435759,1752018632263,-2257.3,0.00022706,2]
[370435760,1752018632274,-371.0,0.00022711,2]
[370435761,1752018632283,-169.75,0.00022712,2]
[370435762,1752018632294,-380.0,0.0002274,7]
[370435763,1752018632303,-509.0,0.00022891,9]
[370435764,1752018632313,-529.39456973,0.000229,8]
[370435765,1752018632322,-150.0,0.0002294,2]
[370435766,1752018632332,-156.83,0.00022941,2]
[370435767,1752018632343,-156.83,0.00022954,2]
[370435768,1752018632352,-156.83,0.00022968,2]